[Event "13th All African Mixed Team Rapid-ch 202"]
[Site "Accra"]
[Date "2024.03.09"]
[Round "1.9"]
[White "Mwali, Chitumbo"]
[Black "Cogan, Nicolas"]
[Result "1-0"]
[ECO "A37"]
[WhiteElo "2340"]
[BlackElo "2070"]
[Annotator "TA"]
[PlyCount "83"]
[EventDate "2024.03.07"]
[EventType "rapid"]
[EventCountry "GHA"]
[SourceTitle "playchess.com"]
[Source "ChessBase"]
[SourceQuality "1"]
[TimeControl "900+10"]

{[%evp 18,83,-18,-19,-9,-6,-11,-29,-37,-31,-8,-23,5,0,5,0,31,23,25,23,92,99,104,93,100,37,36,0,0,0,81,-6,169,168,180,180,187,174,183,51,273,145,160,34,235,212,978,402,395,250,694,546,468,405,1392,1051,1169,1169,1019,1004,29980,29981,29989,29990,29990,29991,29997,29998]} 1. c4 {[%emt 0:00:02]} c5 {[%emt 0:02:18]} 2. g3 {[%emt 0:00:03]} Nc6 {[%emt 0:00:09]} 3. Bg2 {[%emt 0:00:01]} g6 {[%emt 0:00:01]} 4. Nc3 {[%emt 0:00:01]} Bg7 {[%emt 0:00:02]} 5. Nf3 {[%emt 0:00:12]} d6 {[%emt 0:00:29]} 6. O-O {[%emt 0:00:17]} e6 {[%emt 0:00:34]} 7. a3 {[%emt 0:01:29]} Nge7 {[%emt 0:00:24]} 8. b4 {[%emt 0:00:35]} O-O {[%emt 0:04:26]} 9. bxc5 {[%emt 0:00:32]} dxc5 {[%emt 0:00:03]} 10. Bb2 {[%emt 0:00:01]} b6 {[%emt 0:00:28]} 11. Qc2 {[%emt 0:01:26]} Bb7 {[%emt 0:00:49]} 12. Ne4 {[%emt 0:00:38]} e5 {[%emt 0:00:17] Schwarz hat minimalen Vorteil.} 13. d3 {[%emt 0:00:19]} h6 {[%emt 0:01:06]} 14. e3 {[%emt 0:01:01]} Qc7 {[%emt 0:00:02]} 15. Nc3 {[%emt 0:01:00]} Rad8 {[%emt 0:00:01]} 16. Nd2 {[%emt 0:00:34]} Na5 {[%emt 0:00:44]} 17. e4 {[%emt 0:00:10]} Nac6 {[%emt 0:00:43]} 18. Nd5 {[%emt 0:00:34]} Nxd5 {[%emt 0:00:25]} (18... Qd7 $11) 19. cxd5 $16 {[%emt 0:00:33]} Nd4 {[%emt 0:00:04]} 20. Bxd4 {[%emt 0:00:03]} exd4 {[%emt 0:00:02]} 21. a4 {[%emt 0:00:07]} ({Günstiger ist} 21. Qb3 $16) 21... f5 $14 {[%emt 0:00:43]} 22. f4 {[%emt 0:00:24]} fxe4 {[%emt 0:00:30]} 23. dxe4 {[%emt 0:00:05]} Ba6 {[%emt 0:00:09]} (23... g5 $1 $11) 24. Nc4 {[%emt 0:01:36]} (24. e5 $1 $16 {[%cal Oc2g6]} d3 25. Qc3) 24... Bb7 $2 {[%emt 0:01:24]} (24... d3 $1 $11 {und Schwarz steht sicher.} 25. Qxd3 Bxa1 26. Rxa1 g5) 25. Rab1 $36 {[%emt 0:00:13][%mdl 2048] Weiss hat starke Initiative.} g5 {[%emt 0:00:49]} 26. fxg5 {[%emt 0:00:13]} hxg5 {[%emt 0:00:15]} 27. Rxf8+ {[%emt 0:00:39]} Rxf8 {[%emt 0:00:40] [#]} 28. a5 {[%emt 0:00:28]} (28. e5 $1 $18 {[%cal Re5e6][%mdl 512] Und jetzt e6 wäre schön.} Bxe5 (28... d3 29. Qxd3) 29. Qg6+ Bg7 30. Be4 (30. Qxg5 Qd8 $11)) 28... bxa5 $2 {[%emt 0:00:34]} (28... b5 $14 29. Rxb5 Ba6) 29. d6 {[%emt 0:00:43]} ({Weiss braucht} 29. e5 $1 $18 {Schwarz muss nun d6 beachten.} Ba6 30. Re1) 29... Qc8 {[%emt 0:01:04]} 30. Qb3 {[%emt 0:00:36] Weiß steht aktiver.} (30. Nxa5 $16 Ba8 31. Re1) 30... Rf7 {[%emt 0:00:30]} ({Vorzuziehen ist} 30... Ba6 $1 $14) 31. Nxa5 {[%emt 0:00:09]} Ba6 {[%emt 0:00:14] [#]} (31... d3 32. Qxd3 (32. Nxb7 c4 $16) 32... c4 33. Qxc4 (33. Nxc4 Ba6 $18) 33... Qxc4 34. Nxc4 Ba6) 32. e5 $1 {[%emt 0:01:57][%mdl 512]} c4 {[%emt 0:00:00]} 33. Qb8 {[%emt 0:00:10]} Bxe5 $2 {[%emt 0:00:27]} (33... c3 34. e6 c2 35. exf7+ Kf8 36. Qxc8+ Bxc8) 34. Qxc8+ {[%emt 0:00:14]} Bxc8 {[%emt 0:00:02]} 35. Nxc4 {[%emt 0:00:06]} Bf5 {[%emt 0:00:21]} (35... Bf6 $142 36. Bd5 Kg7 37. Bxf7 Kxf7) 36. Rb8+ {[%emt 0:00:26]} Kg7 {[%emt 0:00:06]} 37. Nxe5 {[%emt 0:00:05]} Rf6 {[%emt 0:00:06]} 38. Rb7+ {[%emt 0:00:20]} Kh6 {[%emt 0:00:17]} 39. g4 {[%emt 0:00:22] Weiß setzt Matt.} Bc8 {[%emt 0:00:11]} 40. d7 {[%emt 0:00:08]} Bxd7 {[%emt 0:00:03]} 41. Rxd7 {[%emt 0:00:03]} Re6 {[%emt 0:00:07] [#]} 42. Be4 $1 {[%emt 0:00:12] Gewichteter Fehlerwert: Weiß=0.54/Schwarz=0.81.  Verlustzug:     	---       	Schwarz=3     Fehler:       	Weiß=6     	Schwarz=5     Ungenau:       	Weiß=1     	Schwarz=2     OK:         	Weiß=11    	Schwarz=5     Bester:       	Weiß=1     	Schwarz=1} 1-0

[Event "13th All African Mixed Team Rapid-ch 202"]
[Site "Accra"]
[Date "2024.03.09"]
[Round "1.10"]
[White "Yavo Tchetche, Marie"]
[Black "Mbatha, Constance"]
[Result "1-0"]
[ECO "D02"]
[WhiteElo "1659"]
[BlackElo "1799"]
[Annotator "NA RC"]
[PlyCount "145"]
[EventDate "2024.03.07"]
[EventType "rapid"]
[EventCountry "GHA"]
[SourceTitle "playchess.com"]
[Source "ChessBase"]
[SourceQuality "1"]
[TimeControl "900+10"]

1. d4 {[%emt 0:00:33]} d5 {[%emt 0:00:09]} 2. Nf3 {[%emt 0:00:25]} Bf5 {[%emt 0:00:15]} 3. g3 {[%emt 0:00:54]} Nd7 {[%emt 0:00:13]} 4. Bg2 {[%emt 0:00:23]} e6 {[%emt 0:00:11]} 5. Nbd2 {[%emt 0:00:24]} Ngf6 {[%emt 0:02:39]} 6. c4 {[%emt 0:00:22]} Bb4 {[%emt 0:03:23]} 7. a3 {[%emt 0:00:34]} Bxd2+ {[%emt 0:00:14]} 8. Nxd2 {[%emt 0:00:04]} O-O {[%emt 0:00:05]} 9. O-O {[%emt 0:00:08]} c6 {[%emt 0:01:30]} 10. Re1 {[%emt 0:01:09]} Re8 {[%emt 0:00:53]} 11. Qb3 {[%emt 0:00:31]} b6 {[%emt 0:00:18]} 12. Nf3 {[%emt 0:00:23]} c5 {[%emt 0:00:24]} 13. Bf4 {[%emt 0:01:13]} Be4 {[%emt 0:00:53]} 14. Rad1 {[%emt 0:01:04]} dxc4 {[%emt 0:00:59]} 15. Qxc4 {[%emt 0:00:16]} Bd5 {[%emt 0:00:03]} 16. Qc1 {[%emt 0:00:34]} Rc8 {[%emt 0:00:38]} 17. Qd2 {[%emt 0:00:52]} cxd4 {[%emt 0:00:38]} 18. Nxd4 {[%emt 0:00:07]} Bxg2 {[%emt 0:00:19]} 19. Kxg2 {[%emt 0:00:19]} e5 {[%emt 0:00:01]} 20. Nf5 {[%emt 0:00:02]} exf4 {[%emt 0:00:09]} 21. Nd6 {[%emt 0:00:01]} Qe7 {[%emt 0:00:06]} 22. Nxe8 {[%emt 0:00:09]} Rxe8 {[%emt 0:00:02]} 23. Qxf4 {[%emt 0:00:10]} h6 {[%emt 0:00:02]} 24. Kg1 {[%emt 0:00:21]} Qe6 {[%emt 0:01:04]} 25. Qc7 {[%emt 0:00:30]} a5 {[%emt 0:00:04]} 26. e3 {[%emt 0:01:29]} Nd5 {[%emt 0:01:46]} 27. Qc4 {[%emt 0:00:15]} N5f6 {[%emt 0:00:01]} 28. Qb5 {[%emt 0:01:05]} Rc8 {[%emt 0:00:41]} 29. Rd2 {[%emt 0:00:38]} Rc5 {[%emt 0:00:14]} 30. Qe2 {[%emt 0:00:43]} Rh5 {[%emt 0:00:45]} 31. f3 {[%emt 0:00:27]} Rc5 {[%emt 0:00:09]} 32. Red1 {[%emt 0:00:05]} Qc6 {[%emt 0:00:10]} 33. Rd6 {[%emt 0:00:57]} Qc7 {[%emt 0:00:02]} 34. b4 {[%emt 0:00:48]} axb4 {[%emt 0:00:11]} 35. axb4 {[%emt 0:00:02]} Rc2 {[%emt 0:00:00]} 36. R6d2 {[%emt 0:00:11]} Rc4 {[%emt 0:00:05]} 37. b5 {[%emt 0:00:14]} Rc5 {[%emt 0:00:14]} 38. Ra2 {[%emt 0:00:12]} Qb7 {[%emt 0:00:14]} 39. e4 {[%emt 0:00:22]} Qc7 {[%emt 0:00:09]} 40. Ra8+ {[%emt 0:00:25]} Kh7 {[%emt 0:00:02]} 41. Qd3 {[%emt 0:00:23]} g6 {[%emt 0:00:19]} 42. f4 {[%emt 0:00:53]} Rc3 {[%emt 0:00:51]} 43. Qd4 {[%emt 0:00:39]} Rc4 {[%emt 0:00:08]} 44. Qd3 {[%emt 0:00:15]} Qc5+ {[%emt 0:00:13]} 45. Kh1 {[%emt 0:00:05]} Rxe4 {[%emt 0:00:09]} 46. Rd8 {[%emt 0:00:18]} Qe7 {[%emt 0:00:05]} 47. Rxd7 {[%emt 0:00:34]} Nxd7 {[%emt 0:00:05]} 48. Qxd7 {[%emt 0:00:08]} Re1+ {[%emt 0:00:56]} 49. Kg2 {[%emt 0:00:01]} Re2+ {[%emt 0:00:05]} 50. Kh3 {[%emt 0:00:06]} Qxd7+ {[%emt 0:00:07]} 51. Rxd7 {[%emt 0:00:02]} Kg7 {[%emt 0:00:01]} 52. Rd6 {[%emt 0:00:06]} Re6 {[%emt 0:00:02]} 53. Rc6 {[%emt 0:00:10]} h5 {[%emt 0:00:07]} 54. Rxe6 {[%emt 0:00:20]} fxe6 {[%emt 0:00:02]} 55. g4 {[%emt 0:00:00]} Kf6 {[%emt 0:00:18]} 56. Kh4 {[%emt 0:00:05]} hxg4 {[%emt 0:00:51]} 57. Kxg4 {[%emt 0:00:01]} e5 {[%emt 0:00:10]} 58. fxe5+ {[%emt 0:00:05]} Kxe5 {[%emt 0:00:00]} 59. h4 {[%emt 0:00:02]} Kf6 {[%emt 0:00:06]} 60. Kf4 {[%emt 0:00:03]} Ke6 {[%emt 0:00:03]} 61. Kg5 {[%emt 0:00:01]} Kd5 {[%emt 0:00:01]} 62. Kxg6 {[%emt 0:01:52]} Kc5 63. h5 {[%emt 0:00:00]} Kxb5 {[%emt 0:00:11]} 64. h6 {[%emt 0:00:00]} Kc4 {[%emt 0:00:01]} 65. h7 {[%emt 0:00:00]} b5 66. h8=Q b4 {[%emt 0:00:13]} 67. Qb2 {[%emt 0:00:00]} b3 {[%emt 0:00:03]} 68. Kf5 {[%emt 0:00:00]} Kb4 {[%emt 0:00:02]} 69. Ke4 {[%emt 0:00:00]} Kc4 {[%emt 0:00:01]} 70. Ke3 {[%emt 0:00:00]} Kb4 {[%emt 0:00:02]} 71. Kd3 {[%emt 0:00:00]} Ka4 {[%emt 0:00:02]} 72. Kc3 {[%emt 0:00:00]} Ka5 {[%emt 0:00:11]} 73. Qxb3 {[%emt 0:00:00]} 1-0

[Event "13th All African Mixed Team Rapid-ch 202"]
[Site "Accra"]
[Date "2024.03.09"]
[Round "1.11"]
[White "Fomevor, Cephas Clinton"]
[Black "Mhango, Banele"]
[Result "0-1"]
[ECO "E61"]
[WhiteElo "1887"]
[BlackElo "2193"]
[Annotator "RC"]
[PlyCount "81"]
[EventDate "2024.03.07"]
[EventType "rapid"]
[EventCountry "GHA"]
[SourceTitle "playchess.com"]
[Source "ChessBase"]
[SourceQuality "1"]
[TimeControl "900+10"]

1. d4 {[%emt 0:00:03]} Nf6 {[%emt 0:00:03]} 2. c4 {[%emt 0:00:03]} g6 {[%emt 0:00:02]} 3. Nc3 {[%emt 0:00:01]} Bg7 {[%emt 0:00:01]} 4. Nf3 {[%emt 0:00:01]} O-O {[%emt 0:00:02]} 5. Bg5 {[%emt 0:00:02]} d6 {[%emt 0:00:23]} 6. e3 {[%emt 0:00:05]} c6 {[%emt 0:00:43]} 7. Be2 {[%emt 0:00:07]} Nbd7 {[%emt 0:00:42]} 8. O-O {[%emt 0:00:03]} h6 {[%emt 0:00:06]} 9. Bh4 {[%emt 0:00:03]} g5 {[%emt 0:00:12]} 10. Bg3 {[%emt 0:00:01]} Nh5 {[%emt 0:00:03]} 11. Qc2 {[%emt 0:01:06]} Nxg3 {[%emt 0:00:33]} 12. hxg3 {[%emt 0:00:02]} e5 {[%emt 0:01:22]} 13. Rfd1 {[%emt 0:02:02]} Qe7 {[%emt 0:00:14]} 14. Rac1 {[%emt 0:00:54]} f5 {[%emt 0:00:13]} 15. dxe5 {[%emt 0:00:16]} dxe5 {[%emt 0:00:05]} 16. a3 {[%emt 0:02:09]} a5 {[%emt 0:00:06]} 17. Na2 {[%emt 0:00:32]} a4 {[%emt 0:01:05]} 18. Nb4 {[%emt 0:00:29]} Nc5 {[%emt 0:00:10]} 19. Nd2 {[%emt 0:01:08]} e4 {[%emt 0:00:23]} 20. Nf1 {[%emt 0:02:21]} Qe5 {[%emt 0:00:23]} 21. Rb1 {[%emt 0:01:03]} Be6 {[%emt 0:00:02]} 22. f4 {[%emt 0:01:51]} exf3 {[%emt 0:02:28]} 23. gxf3 {[%emt 0:00:23]} f4 {[%emt 0:01:03]} 24. exf4 {[%emt 0:00:14]} gxf4 {[%emt 0:00:01]} 25. g4 {[%emt 0:00:01]} h5 {[%emt 0:00:21]} 26. Nd3 {[%emt 0:04:30]} Qg5 {[%emt 0:00:34]} 27. Nxc5 {[%emt 0:00:00]} Qxc5+ {[%emt 0:00:02]} 28. Kg2 {[%emt 0:00:00]} hxg4 {[%emt 0:00:22]} 29. fxg4 {[%emt 0:00:00]} f3+ {[%emt 0:01:11]} 30. Bxf3 {[%emt 0:00:00]} Rxf3 {[%emt 0:00:13]} 31. Kxf3 {[%emt 0:00:00]} Rf8+ {[%emt 0:00:18]} 32. Kg2 {[%emt 0:00:00]} Bxg4 {[%emt 0:00:09]} 33. Nh2 {[%emt 0:00:13]} Bf5 {[%emt 0:02:57]} 34. Qe2 {[%emt 0:00:30]} Bg6 {[%emt 0:01:15]} 35. Nf3 {[%emt 0:00:28]} Re8 {[%emt 0:00:13]} 36. Qf2 {[%emt 0:00:07]} Qf5 {[%emt 0:00:22]} 37. Re1 {[%emt 0:00:07]} Rf8 {[%emt 0:00:13]} 38. Qg3 {[%emt 0:00:18]} Bh5 {[%emt 0:00:54]} 39. Rf1 {[%emt 0:00:12]} Qc2+ {[%emt 0:00:12]} 40. Kh1 {[%emt 0:00:12]} Rxf3 {[%emt 0:00:15]} 41. Rxf3 {[%emt 0:00:23]} 0-1

[Event "13th All African Mixed Team Rapid-ch 202"]
[Site "Accra"]
[Date "2024.03.09"]
[Round "1.12"]
[White "February, Jesse Nikki"]
[Black "Gertrude Banini"]
[Result "1-0"]
[ECO "B17"]
[WhiteElo "1920"]
[BlackElo "1681"]
[Annotator "RC"]
[PlyCount "52"]
[EventDate "2024.03.07"]
[EventType "rapid"]
[EventCountry "GHA"]
[SourceTitle "playchess.com"]
[Source "ChessBase"]
[SourceQuality "1"]
[TimeControl "900+10"]

1. e4 {[%emt 0:00:04]} c6 {[%emt 0:00:07]} 2. d4 {[%emt 0:00:09]} d5 {[%emt 0:00:04]} 3. Nc3 {[%emt 0:00:04]} dxe4 {[%emt 0:00:07]} 4. Nxe4 {[%emt 0:00:04]} Nd7 {[%emt 0:00:06]} 5. Bc4 {[%emt 0:00:41]} h6 {[%emt 0:00:56]} 6. Qe2 {[%emt 0:00:16]} e6 {[%emt 0:00:20]} 7. Bf4 {[%emt 0:01:40]} Ndf6 {[%emt 0:00:34]} 8. O-O-O {[%emt 0:01:13]} Nxe4 {[%emt 0:00:36]} 9. Qxe4 {[%emt 0:00:03]} Nf6 {[%emt 0:00:14]} 10. Qe2 {[%emt 0:00:16]} Bd6 {[%emt 0:00:45]} 11. Be5 {[%emt 0:01:14]} Bxe5 {[%emt 0:01:05]} 12. dxe5 {[%emt 0:00:20]} Nd5 {[%emt 0:00:11]} 13. Nf3 {[%emt 0:00:41]} Qc7 {[%emt 0:00:56]} 14. Qe4 {[%emt 0:01:48]} b6 {[%emt 0:02:17]} 15. Kb1 {[%emt 0:01:24]} Bb7 {[%emt 0:00:18]} 16. Qg4 {[%emt 0:02:25]} O-O {[%emt 0:00:42]} 17. Bd3 {[%emt 0:00:50]} Rfd8 {[%emt 0:01:09]} 18. Qe4 {[%emt 0:00:54]} g6 {[%emt 0:01:37]} 19. Qh4 {[%emt 0:00:16]} h5 {[%emt 0:01:06]} 20. g4 {[%emt 0:01:22]} Qe7 {[%emt 0:01:09]} 21. Ng5 {[%emt 0:00:06]} Nf4 {[%emt 0:01:47]} 22. gxh5 {[%emt 0:00:21]} Nxh5 {[%emt 0:00:20]} 23. Rhg1 {[%emt 0:00:09]} Rd5 {[%emt 0:01:06]} 24. Rde1 {[%emt 0:00:59]} Rad8 {[%emt 0:00:24]} 25. Qh3 {[%emt 0:00:36]} c5 {[%emt 0:00:40]} 26. Nxf7 {[%emt 0:00:38]} Qxf7 {[%emt 0:00:54]} 1-0

[Event "13th All African Mixed Team Rapid-ch 202"]
[Site "Accra"]
[Date "2024.03.09"]
[Round "1.14"]
[White "Benson, Maud"]
[Black "Vilhete, Vania Fausto Da T."]
[Result "1-0"]
[ECO "E18"]
[WhiteElo "1664"]
[BlackElo "1829"]
[Annotator "NA RC"]
[PlyCount "105"]
[EventDate "2024.03.07"]
[EventType "rapid"]
[EventCountry "GHA"]
[SourceTitle "playchess.com"]
[Source "ChessBase"]
[SourceQuality "1"]
[TimeControl "900+10"]

1. d4 {[%emt 0:00:03]} d5 {[%emt 0:00:02]} 2. Nf3 {[%emt 0:00:08]} e6 {[%emt 0:00:06]} 3. g3 {[%emt 0:00:04]} Nf6 {[%emt 0:00:04]} 4. Bg2 {[%emt 0:00:02]} Be7 {[%emt 0:00:04]} 5. O-O {[%emt 0:00:05]} O-O {[%emt 0:00:03]} 6. c4 {[%emt 0:00:03]} b6 {[%emt 0:00:54]} 7. Nc3 {[%emt 0:00:04]} Bb7 {[%emt 0:00:05]} 8. Ne5 {[%emt 0:00:18]} Nbd7 {[%emt 0:03:06]} 9. Nxd7 {[%emt 0:03:03]} Qxd7 {[%emt 0:00:09]} 10. Qd3 {[%emt 0:02:44] E18: Queen's Indian: Old Main Line (4 g3 Bb7 5 Bg2 Be7 6 0-0 0-0 7 Nc3).} Rfd8 {[%emt 0:01:00]} 11. Rd1 {[%emt 0:00:57]} dxc4 {[%emt 0:02:33]} 12. Qxc4 {[%emt 0:00:02]} Bxg2 {[%emt 0:00:02]} 13. Kxg2 {[%emt 0:00:02]} c5 {[%emt 0:00:16]} 14. dxc5 {[%emt 0:00:38]} Qc6+ {[%emt 0:00:23]} 15. Kg1 {[%emt 0:00:44]} Rxd1+ {[%emt 0:01:43]} 16. Nxd1 {[%emt 0:00:05]} Bxc5 {[%emt 0:00:57]} 17. Be3 {[%emt 0:00:08]} Qe4 {[%emt 0:01:31]} 18. Rc1 {[%emt 0:00:35]} Rd8 {[%emt 0:01:35]} 19. Qxe4 {[%emt 0:05:26]} Nxe4 {[%emt 0:00:02]} 20. Kg2 {[%emt 0:00:50]} h6 {[%emt 0:03:55]} 21. h4 {[%emt 0:00:08]} Bxe3 {[%emt 0:00:00]} 22. Nxe3 {[%emt 0:00:12]} Rd2 {[%emt 0:00:00]} 23. Kf3 {[%emt 0:00:05]} Nc5 {[%emt 0:00:00]} 24. Rc2 {[%emt 0:00:05]} Rxc2 {[%emt 0:00:00]} 25. Nxc2 {[%emt 0:00:01]} Kf8 {[%emt 0:00:00]} 26. Nd4 {[%emt 0:00:16]} Na4 {[%emt 0:00:00]} 27. b3 {[%emt 0:00:08]} Nc3 {[%emt 0:00:00]} 28. a3 {[%emt 0:00:17]} Nb1 {[%emt 0:00:00]} 29. a4 {[%emt 0:00:08]} Nd2+ {[%emt 0:00:00]} 30. Kf4 {[%emt 0:00:26]} Ke8 {[%emt 0:00:00]} 31. Ke3 {[%emt 0:00:12]} Nb1 {[%emt 0:00:00]} 32. Nc6 {[%emt 0:00:04]} a6 {[%emt 0:00:00]} 33. Kd3 {[%emt 0:00:27]} b5 {[%emt 0:00:36]} 34. a5 {[%emt 0:00:30]} Kd7 {[%emt 0:00:36]} 35. Nb8+ {[%emt 0:00:04]} Kc7 {[%emt 0:00:16]} 36. Nxa6+ {[%emt 0:00:02]} Kb7 {[%emt 0:00:02]} 37. Nb4 {[%emt 0:00:34]} Na3 {[%emt 0:00:33]} 38. Kc3 {[%emt 0:00:08]} Nb1+ {[%emt 0:00:06]} 39. Kc2 {[%emt 0:00:10]} Na3+ {[%emt 0:00:03]} 40. Kb2 {[%emt 0:00:04]} Nc4+ {[%emt 0:00:03]} 41. bxc4 {[%emt 0:00:02]} bxc4 {[%emt 0:00:01]} 42. Kc3 {[%emt 0:00:01]} f6 {[%emt 0:00:04]} 43. Kxc4 {[%emt 0:00:03]} e5 {[%emt 0:00:01]} 44. Kb5 {[%emt 0:00:13]} g5 {[%emt 0:00:08]} 45. Nd5 {[%emt 0:00:10]} f5 {[%emt 0:00:02]} 46. h5 {[%emt 0:00:32]} f4 {[%emt 0:00:15]} 47. gxf4 {[%emt 0:00:07]} exf4 {[%emt 0:00:04]} 48. f3 {[%emt 0:00:10]} Ka7 {[%emt 0:00:07]} 49. Ne7 {[%emt 0:00:11]} Kb7 {[%emt 0:00:06]} 50. Ng8 {[%emt 0:00:02]} Ka7 {[%emt 0:00:17]} 51. Nxh6 {[%emt 0:00:02]} Kb7 {[%emt 0:00:10]} 52. Nf5 {[%emt 0:00:01]} g4 {[%emt 0:00:03]} 53. fxg4 {[%emt 0:00:07]} 1-0

[Event "13th All African Mixed Team Rapid-ch 202"]
[Site "Accra"]
[Date "2024.03.09"]
[Round "1.15"]
[White "Akpa Prince"]
[Black "Rakotomaharo, Fy Antenaina"]
[Result "0-1"]
[ECO "E06"]
[WhiteElo "1845"]
[BlackElo "2454"]
[Annotator "TA"]
[PlyCount "66"]
[EventDate "2024.03.07"]
[EventType "rapid"]
[EventCountry "GHA"]
[SourceTitle "playchess.com"]
[Source "ChessBase"]
[SourceQuality "1"]
[TimeControl "900+10"]

{[%evp 11,66,20,12,17,25,11,0,0,0,-62,0,-59,-50,-47,-51,-103,-77,-137,-139,-162,-142,-245,-250,-327,-320,-1029,-1029,-1071,-1103,-1058,-1075,-2151,-1560,-2195,-1916,-29992,-29993,-29994,-29995,-29995,-29996,-29996,-29997,-29997,-29993,-29993,-29994,-29994,-29995,-29995,-29995,-29995,-29995,-29997,-29998,-29998,-29999]} 1. d4 {[%emt 0:00:07]} d5 {[%emt 0:00:05]} 2. Nf3 {[%emt 0:00:05]} Nf6 {[%emt 0:00:03]} 3. c4 {[%emt 0:00:04]} e6 {[%emt 0:00:04]} 4. g3 {[%emt 0:00:05]} Be7 {[%emt 0:00:05]} 5. Bg2 {[%emt 0:00:04]} O-O {[%emt 0:00:03]} 6. O-O {[%emt 0:00:08]} a5 {[%emt 0:00:04]} 7. Nc3 {[%emt 0:00:06]} c6 {[%emt 0:00:02]} 8. Ne5 {[%emt 0:00:11]} Nfd7 {[%emt 0:00:03]} 9. cxd5 {[%emt 0:00:24] The position is equal.} exd5 {[%emt 0:00:04]} 10. a4 {[%emt 0:00:25]} (10. f4 $11) 10... Bb4 {[%emt 0:00:26]} (10... Nxe5 $15 11. dxe5 Bc5) 11. e4 {[%emt 0:00:16]} (11. Nd3 $11) 11... Nxe5 $15 {[%emt 0:00:12]} 12. dxe5 {[%emt 0:00:03]} d4 {[%emt 0:00:06]} 13. Ne2 {[%emt 0:00:16]} ({White should play} 13. Na2 $15) 13... c5 {[%emt 0:00:12]} 14. f4 {[%emt 0:00:17]} ({White should try} 14. Nf4) 14... Nc6 $17 {[%emt 0:00:07]} 15. Bd2 {[%emt 0:00:41]} b6 {[%emt 0:01:19]} 16. f5 {[%emt 0:00:16]} (16. h3 $17 {is a better defense.}) 16... Nxe5 $19 {[%emt 0:00:09]} 17. f6 {[%emt 0:00:14]} Bg4 {[%emt 0:00:46] [#] Hoping for ...d3.} (17... gxf6 18. Nf4 $17) 18. Bg5 $2 {[%emt 0:00:33]} (18. fxg7 Re8 (18... Kxg7 $2 19. Bf4 $19) 19. Qe1) 18... d3 {[%emt 0:00:09]} 19. fxg7 {[%emt 0:00:32]} Qxg5 {[%emt 0:00:05]} 20. gxf8=Q+ {[%emt 0:13:43]} Rxf8 {[%emt 0:00:07]} 21. Rf5 {[%emt 0:00:00]} Qe3+ {[%emt 0:00:12]} (21... dxe2 $2 {too greedy.} 22. Rxg5+ Ng6 23. Qc2 $18 (23. Rxg4 exd1=N 24. Rxd1 Re8 $18) (23. Qd6 Be6 $18)) 22. Kh1 {[%emt 0:00:00]} dxe2 {[%emt 0:00:22]} 23. Qd6 {[%emt 0:00:00]} Bxf5 {[%emt 0:00:04] Black mates.} 24. h4 {[%emt 0:00:00]} e1=Q+ {[%emt 0:00:07]} 25. Rxe1 {[%emt 0:00:00]} Qxe1+ {[%emt 0:00:04]} 26. Kh2 {[%emt 0:00:00]} Ng4+ {[%emt 0:00:50]} 27. Kh3 {[%emt 0:00:00]} Be6 {[%emt 0:00:12]} 28. Qf4 {[%emt 0:00:00]} Bd2 {[%emt 0:00:04]} 29. Qxg4+ {[%emt 0:00:50]} Bxg4+ {[%emt 0:00:03]} 30. Kxg4 {[%emt 0:00:50]} Re8 {[%emt 0:14:01]} 31. Kh3 {[%emt 0:00:10]} Re6 {[%emt 0:00:10]} 32. b3 {[%emt 0:00:00]} Rg6 {[%emt 0:00:00][%csl Gg6][%cal Re1g3]} 33. g4 {[%emt 0:00:00]} Bf4 {[%emt 0:00:00] Black took control after the opening.   Weighted Error Value: White=0.91/Black=0.04 (flawless) .  Mistake:       	White=6     	Black=1      Inaccurate:     	White=1     	---        OK:         	---       	Black=4      Best:        	---       	Black=3} 0-1